bitfinex/quotes_ETHUSD_20260214
["timestamp","ask_amount","ask_price","bid_price","bid_amount"]
[1771078549227,1.20418091,2076.1,2075.4,3.02958706]
[1771078549732,1.66441421,2076.1,2075.4,3.02958706]
[1771078550056,1.71262555,2076.1,2075.3,1.65870355]
[1771078551126,0.4602333,2076.1,2075.4,0.45409782]
[1771078551424,1.66444352,2076.1,2075.5,1.20452902]
[1771078553747,1.20421022,2076.1,2075.5,1.20452902]
[1771078554166,0.50844464,2076.3,2075.5,1.20452902]
[1771078554465,1.71251122,2076.3,2075.6,0.45409782]
[1771078555533,1.25227792,2076.3,2075.7,1.20441296]
[1771078556218,1.20406658,2076.3,2075.7,1.20441296]
[1771078556426,1.25222176,2076.4,2075.7,1.65851078]
[1771078556717,1.25222176,2076.4,2075.6,1.20442591]
[1771078556923,1.25227345,2076.4,2075.6,1.65852373]
[1771078557453,1.66429541,2076.4,2075.6,1.65852373]
[1771078558843,0.4602333,2076.3,2075.6,1.65852373]
[1771078559658,1.20412291,2076.2,2075.6,1.65852373]
[1771078560358,5.27657868,2076.3,2075.6,1.65852373]
[1771078560359,0.04821134,2076.4,2075.7,0.45409782]
[1771078560554,1.25218825,2076.5,2075.7,0.45409782]
[1771078560760,1.71242155,2076.5,2075.7,0.45409782]
[1771078561230,6.32157021,2076.6,2075.7,0.45409782]
[1771078561231,2.75813427,2076.6,2075.7,0.45409782]
[1771078561557,3.24687794,2076.6,2075.7,0.45409782]
[1771078561724,3.24687794,2076.6,2075.8,1.66921729]
[1771078561926,0.48874367,2076.5,2075.8,0.46486235]
[1771078562258,0.48874367,2076.3,2075.4,3.49041348]
[1771078562454,0.53695501,2076.2,2075.4,3.49041348]
[1771078562760,0.48874367,2076.2,2075.5,0.46486235]
[1771078564252,1.74095663,2076.5,2075.7,0.46486235]
[1771078564452,0.48874367,2076.4,2075.7,0.46486235]
[1771078564821,0.48874367,2076.2,2075.3,1.66950746]
[1771078565761,0.48874367,2076.2,2075.4,0.46486235]
[1771078566426,0.48874367,2076.2,2075.4,1.66944557]
[1771078566427,1.69292458,2076.1,2075.4,1.66944557]
[1771078567152,0.48874367,2076.0,2075.2,1.20566539]
[1771078567379,0.48874367,2076.0,2075.2,1.20569639]
[1771078567652,0.48874367,2076.0,2075.2,0.001]
[1771078568257,0.48874367,2075.9,2075.2,0.001]
[1771078568637,1.20435494,2075.8,2075.2,0.001]
[1771078568953,0.48874367,2075.7,2075.2,0.001]
[1771078570969,1.69321466,2075.6,2075.2,0.001]
[1771078571438,1.20447099,2075.6,2075.2,0.001]
[1771078571968,0.48874367,2075.5,2075.1,0.001]
[1771078572264,1.20447099,2075.6,2075.1,0.001]
[1771078572665,1.20440933,2075.8,2075.1,0.46586235]
[1771078572975,1.693153,2075.8,2075.2,1.20470316]
[1771078574762,1.693153,2075.8,2075.1,0.46586235]
[1771078574952,1.693153,2075.8,2075.1,1.67062089]
[1771078575351,1.693153,2075.8,2075.2,0.46486235]
[1771078576664,1.693153,2075.8,2075.1,1.20575854]
[1771078576865,0.48874367,2075.7,2075.1,1.20575854]
[1771078578673,1.20440933,2075.8,2075.1,1.67062089]
[1771078579854,1.693153,2075.8,2075.1,1.67062089]
[1771078582892,1.6930813,2075.9,2075.2,0.46486235]
[1771078583105,1.20433763,2075.9,2075.2,0.46486235]
[1771078583274,1.6930813,2075.9,2075.2,0.46486235]
[1771078583596,0.48874367,2075.8,2075.3,1.20464511]
[1771078584159,1.20433763,2075.9,2075.3,1.20464511]
[1771078584481,1.20433763,2075.9,2075.3,1.66950746]
[1771078586770,1.69302592,2076.0,2075.3,1.66950746]
[1771078586979,1.69302592,2076.0,2075.4,0.46486235]
[1771078587996,1.20428225,2076.0,2075.4,0.46486235]
[1771078588777,3.19701624,2076.2,2075.5,0.46486235]
[1771078588984,0.53695501,2076.1,2075.5,0.46486235]
[1771078589578,2.70827257,2076.2,2075.5,0.46486235]
[1771078590305,0.0011,2076.2,2075.5,0.46486235]
[1771078590876,0.0011,2076.2,2075.7,0.46486235]
[1771078591509,1.24210351,2076.4,2075.7,0.46486235]
[1771078591717,0.0011,2076.5,2075.7,0.46486235]
[1771078591887,1.68730443,2076.5,2075.7,0.46486235]
[1771078592450,0.48225253,2076.4,2075.7,0.46486235]
[1771078593218,1.68626629,2076.4,2075.8,1.20435494]
[1771078593424,1.68626629,2076.4,2075.8,1.70233692]
[1771078593915,1.68730444,2076.5,2075.8,1.70233692]
[1771078594112,1.68730444,2076.5,2075.7,4.81741978]
[1771078594113,0.48225253,2076.4,2075.6,0.49798198]
[1771078594412,0.48225253,2076.4,2075.6,2.30898198]
[1771078594618,0.48225253,2076.4,2075.4,3.51352427]
[1771078594785,0.48225253,2076.3,2075.3,0.49798198]
[1771078594981,0.48225253,2076.4,2075.3,0.49798198]
[1771078595199,0.48225253,2076.1,2075.3,1.70258454]
[1771078596818,0.48225253,2076.1,2075.4,0.49798198]
[1771078597187,1.20412291,2076.2,2075.4,0.49798198]
[1771078597387,1.20412291,2076.2,2075.5,1.702511]
[1771078597614,1.68637544,2076.2,2075.5,1.702511]
[1771078597815,1.68637544,2076.2,2075.5,0.49798198]
[1771078600424,1.68637544,2076.2,2075.6,1.67265552]
[1771078600931,1.20412291,2076.2,2075.6,1.67265552]
[1771078601395,0.46834864,2076.0,2075.1,1.20571485]
[1771078601599,0.46834864,2076.0,2075.1,3.48089938]
[1771078601829,1.20412291,2076.2,2075.1,1.67389938]
[1771078601830,0.46834864,2075.8,2075.1,1.67389938]
[1771078603321,1.20441296,2075.7,2075.1,1.67393876]
[1771078603494,1.6727616,2075.7,2075.1,1.67393876]
[1771078604507,1.6727616,2075.7,2075.1,0.001]
[1771078604708,1.6727616,2075.7,2075.1,1.20575238]
[1771078604709,7.36141689,2075.7,2075.1,1.20575238]
[1771078604934,1.20439074,2075.8,2075.2,0.46818453]
[1771078605112,3.17568201,2075.9,2075.2,0.46818453]
[1771078605485,1.503,2075.9,2075.4,0.46818453]
[1771078606318,1.20424795,2076.0,2075.4,0.46818453]
[1771078607990,0.46834864,2075.9,2075.2,1.67288769]
[1771078608629,1.20424795,2076.0,2075.3,0.46818453]
[1771078609131,1.67257351,2076.1,2075.3,0.46818453]
[1771078609742,0.46834864,2076.0,2075.3,1.67278583]
[1771078610090,0.46834864,2076.1,2075.3,1.20464168]
[1771078610329,0.46834864,2076.1,2075.2,1.67285114]
[1771078610516,0.46834864,2076.1,2075.2,1.20466661]
[1771078610901,0.46834864,2076.1,2075.1,0.001]
[1771078611851,1.20423892,2076.0,2075.1,0.46918453]
[1771078612023,0.46834864,2076.1,2075.1,0.46918453]
[1771078613757,1.20423892,2076.0,2075.1,0.001]
[1771078614063,0.46834864,2075.9,2075.1,0.001]
[1771078617152,1.67270358,2075.8,2075.1,1.20576121]
[1771078617470,0.46834864,2075.7,2075.1,1.20576121]
[1771078617750,0.46834864,2075.7,2075.1,0.001]
[1771078620975,1.67281963,2075.6,2075.1,0.001]
[1771078622496,0.47082999,2075.5,2075.0,0.001]
[1771078622764,0.47082999,2075.5,2074.8,0.001]
[1771078623128,0.47082999,2075.3,2074.8,0.001]
[1771078624381,0.47082999,2075.3,2074.6,0.001]
[1771078624550,0.47082999,2075.1,2074.6,0.001]
[1771078624748,0.47082999,2075.1,2074.3,0.001]
[1771078625349,0.47082999,2074.9,2074.3,0.001]
[1771078626282,0.47082999,2074.9,2074.2,0.001]
[1771078626487,0.47082999,2074.9,2074.5,0.001]
[1771078626686,0.47082999,2074.9,2074.2,0.001]
[1771078627511,0.47082999,2074.9,2073.7,1.67688147]
[1771078627512,0.47082999,2074.7,2073.7,1.67688147]
[1771078627693,0.47082999,2074.6,2073.8,0.47031914]
[1771078629360,1.5,2074.8,2074.0,0.47031914]
[1771078629761,1.97082999,2074.8,2074.0,0.47031914]
[1771078631174,1.5,2074.8,2074.0,0.47031914]
[1771078631784,1.20499349,2074.7,2074.1,1.20534207]
[1771078631973,1.20499349,2074.7,2074.1,1.67566121]
[1771078632175,2.70496032,2074.8,2074.1,1.67566121]
[1771078632568,1.5,2074.8,2074.2,0.47031914]
[1771078633396,1.20482013,2075.0,2074.2,0.47031914]
[1771078633594,3.17463034,2075.1,2074.2,0.47031914]
[1771078634003,3.17463034,2075.1,2074.3,1.20522585]
[1771078634182,3.17463034,2075.1,2074.3,1.67554499]
[1771078635198,3.17463034,2075.1,2074.4,0.47031914]
[1771078635993,2.70380035,2075.1,2074.4,0.47031914]
[1771078636296,2.70380035,2075.1,2074.5,1.20510966]
[1771078636993,2.70380035,2075.1,2074.5,1.6754288]
[1771078640204,0.47082999,2075.0,2073.9,0.867]
[1771078640407,0.47082999,2074.8,2073.9,0.867]
[1771078640579,0.47082999,2074.8,2073.8,0.001]
[1771078641304,1.20487734,2074.9,2073.8,0.001]
[1771078641305,0.47082999,2074.6,2073.8,0.001]
[1771078641617,0.47082999,2074.4,2073.8,0.001]
[1771078642587,1.20522585,2074.3,2073.8,0.001]
[1771078642786,1.67605584,2074.3,2073.8,0.001]
[1771078648513,1.20522585,2074.3,2073.8,0.001]
[1771078648678,1.20517955,2074.4,2073.8,0.47131914]
[1771078649325,1.20517955,2074.4,2073.9,1.20545831]
[1771078649500,1.20517955,2074.4,2073.9,1.67577745]
[1771078650119,1.504,2074.5,2074.0,0.47031914]
[1771078650421,2.70911602,2074.5,2074.0,0.47031914]
[1771078650610,1.504,2074.5,2074.0,0.47031914]
[1771078650812,1.504,2074.5,2073.9,1.20545831]
[1771078651014,3.17994225,2074.5,2073.8,1.67679777]
[1771078651203,1.504,2074.5,2073.9,0.45346696]
[1771078651400,2.70911132,2074.5,2074.0,1.20540019]
[1771078652190,2.70911132,2074.5,2073.9,0.45346696]
[1771078652403,2.70911132,2074.5,2073.9,1.65891709]
[1771078653503,1.504,2074.5,2074.0,0.45346696]
[1771078654939,2.70911292,2074.5,2074.0,0.45346696]
[1771078655431,2.70911292,2074.5,2073.9,0.45346696]
[1771078656427,1.504,2074.5,2073.9,0.45346696]
[1771078658722,2.70911018,2074.5,2074.0,1.65886715]
[1771078660632,1.504,2074.5,2074.0,1.65886715]
[1771078662733,0.4999052,2074.4,2073.8,0.48904387]
[1771078662897,0.4999052,2074.4,2073.8,0.001]
[1771078663303,0.4999052,2074.4,2073.7,0.001]
[1771078663929,1.20520713,2074.4,2073.8,0.48804387]
[1771078664436,0.4999052,2074.3,2073.7,1.206554]
[1771078664607,0.4999052,2074.3,2073.7,0.001]
[1771078665836,6.32458691,2074.5,2073.9,0.48804387]
[1771078665837,1.504,2074.5,2073.9,0.48804387]
[1771078666048,2.70911736,2074.5,2073.9,0.48804387]
[1771078667739,1.504,2074.5,2073.9,0.48804387]
[1771078667943,1.504,2074.5,2074.0,1.69344406]
[1771078668233,2.70911548,2074.5,2074.0,1.69344406]
[1771078668837,1.504,2074.5,2074.0,1.69344406]
[1771078669433,1.504,2074.5,2074.1,0.48804387]
[1771078669632,1.20607828,2074.8,2074.1,0.48804387]
[1771078670332,1.20607828,2074.8,2074.2,1.20528396]
[1771078670637,0.0011,2074.8,2074.2,1.69332783]
[1771078671011,0.0011,2074.8,2074.3,0.48804387]
[1771078671325,0.5010052,2074.8,2074.2,1.20528396]
[1771078671844,0.0011,2074.8,2074.2,1.20528396]
[1771078672143,0.0011,2074.8,2074.2,1.69332783]
[1771078676142,0.5010052,2074.8,2073.9,6.60071441]
[1771078676448,0.5010052,2074.8,2074.0,0.48804387]
[1771078678648,0.4999052,2074.6,2074.0,1.69342033]
[1771078680443,0.4999052,2074.6,2074.0,1.20537646]
[1771078680948,0.5010052,2074.8,2074.0,0.48804387]
[1771078681116,0.0011,2074.8,2074.0,0.48804387]
[1771078681418,1.20603624,2074.8,2074.0,0.48804387]
[1771078682240,0.0011,2074.8,2074.0,0.48804387]
[1771078683418,1.20604554,2074.8,2074.2,0.48038313]
[1771078684535,0.0011,2074.8,2074.2,0.48038313]
[1771078685745,0.0011,2074.8,2074.3,1.20522585]
[1771078690363,0.0011,2074.8,2074.3,1.68560898]
[1771078692864,0.5010724,2074.8,2074.1,0.48038313]
[1771078696032,1.70496589,2074.7,2074.2,1.20528396]
[1771078696768,0.4999724,2074.7,2074.2,1.20528396]
[1771078696968,1.20604484,2074.8,2074.2,1.68566709]
[1771078698340,1.70601724,2074.8,2074.2,1.68566709]
[1771078699288,1.20604484,2074.8,2074.3,0.48038313]
[1771078700380,1.20604484,2074.8,2074.3,1.68556688]
[1771078702897,0.4999724,2074.7,2073.9,9.15792315]
[1771078703059,0.4999724,2074.7,2074.0,5.30186793]
[1771078703687,0.4999724,2074.7,2074.1,0.48038313]
[1771078705365,1.70501849,2074.7,2074.1,1.68567036]
[1771078706277,0.4999724,2074.6,2074.1,1.20528723]
[1771078707280,1.7050327,2074.6,2074.1,1.20528723]
[1771078707885,0.4999724,2074.5,2073.9,1.68581011]
[1771078708272,1.7050327,2074.6,2073.9,1.68581011]
[1771078708477,0.4999724,2074.5,2073.9,1.68581011]
[1771078708664,0.4999724,2074.5,2073.8,2.98547624]
[1771078710800,1.70514015,2074.4,2073.8,2.98547624]
[1771078712094,1.70514015,2074.4,2073.8,3.48229688]
[1771078712268,1.20515245,2074.5,2073.8,2.98547624]
[1771078712470,1.70400195,2074.5,2073.8,3.48229688]
[1771078712688,0.4988495,2074.4,2073.8,3.48229688]
[1771078713408,1.70403875,2074.4,2073.8,3.48229688]
[1771078713698,1.20499349,2074.7,2073.9,0.49682064]
[1771078714071,0.4988495,2074.6,2073.9,0.49682064]
[1771078716012,1.20499349,2074.7,2074.1,0.49682064]
[1771078716503,5.31969125,2074.8,2074.1,0.49682064]
[1771078716504,1.20606299,2074.8,2074.1,0.49682064]
[1771078719184,1.20606299,2074.8,2074.2,1.7021046]
[1771078719509,0.4999495,2074.8,2074.2,1.7021046]
[1771078719709,0.4999495,2074.8,2074.2,1.20528396]
[1771078720005,0.4999495,2074.8,2074.2,1.7021046]
[1771078722707,0.0011,2074.8,2074.2,1.7021046]
[1771078723009,1.20603965,2074.8,2074.2,1.7021046]
[1771078723205,0.0011,2074.8,2074.3,0.46432344]
[1771078725119,0.0011,2074.8,2074.4,1.20516775]
[1771078725720,0.0011,2074.8,2074.3,1.6695057]
[1771078725896,0.48795203,2074.8,2074.2,1.20525359]
[1771078727397,1.20499349,2074.7,2074.2,1.20525359]
[1771078727707,0.48685203,2074.6,2074.0,2.98836591]
[1771078728113,0.48685203,2074.6,2074.0,3.45268935]
[1771078728811,0.48795203,2074.8,2074.2,0.46432344]
[1771078729016,0.0011,2074.8,2074.2,0.46432344]
[1771078729517,0.0011,2074.8,2074.4,0.46432344]
[1771078730487,0.48795203,2074.8,2073.8,1.20551644]
[1771078730782,0.48795203,2074.8,2073.9,0.46432344]
[1771078730783,0.0011,2074.8,2073.9,0.46432344]
[1771078730999,0.0011,2074.8,2074.1,0.46432344]
[1771078731395,0.0011,2074.8,2074.2,5.69841376]
[1771078731728,0.0011,2074.8,2074.4,0.46432344]
[1771078736719,0.0011,2074.8,2074.5,1.20510966]
[1771078736908,0.0011,2074.8,2074.6,0.46432344]
[1771078737619,0.0011,2074.8,2074.5,1.20510966]
[1771078739796,0.0011,2074.8,2074.5,1.6694331]
[1771078739993,0.0011,2075.0,2074.7,0.46432344]
[1771078741320,0.0011,2075.0,2074.8,1.20493541]
[1771078742328,0.0011,2075.0,2074.4,4.82056208]
[1771078742529,0.49042522,2075.0,2074.5,1.797]
[1771078742898,0.0011,2075.0,2074.5,2.28286835]
[1771078743223,0.0011,2075.0,2074.6,0.48586835]
[1771078743717,0.0011,2075.0,2074.7,1.69086184]
[1771078743890,0.0011,2075.0,2074.8,0.48586835]
[1771078745122,0.0011,2075.0,2074.7,1.20499349]
[1771078745324,0.0011,2075.0,2074.7,1.69086184]
[1771078747613,0.0011,2075.0,2074.8,0.48586835]
[1771078747818,0.0011,2075.3,2074.8,0.48586835]
[1771078748013,0.0011,2075.3,2074.9,1.69074569]
[1771078752436,0.0011,2075.3,2075.0,0.48586835]
[1771078752744,1.69496051,2075.5,2074.9,1.20487734]
[1771078753026,0.48932522,2075.4,2074.9,1.20487734]
[1771078755605,0.0011,2075.5,2074.9,1.20487734]
[1771078756233,0.0011,2075.5,2074.9,1.69074569]
[1771078756735,0.49042522,2075.5,2074.9,1.69074569]
[1771078758738,0.49042522,2075.5,2074.9,1.20487734]
[1771078759209,0.49042522,2075.5,2074.9,1.69074569]
[1771078760641,0.0011,2075.5,2075.0,0.48586835]
[1771078762222,0.0011,2075.5,2075.1,1.20476121]
[1771078762931,0.49042522,2075.5,2075.1,1.20476121]
[1771078763128,0.49042522,2075.5,2074.6,5.02499349]
[1771078763129,0.48932522,2075.3,2074.6,5.02499349]
[1771078763342,0.48932522,2075.4,2074.8,0.48586835]
[1771078763646,5.69951376,2075.5,2074.6,5.02501563]
[1771078763647,0.48932522,2075.2,2074.6,5.02501563]
[1771078764042,1.4971,2075.5,2074.6,5.02501563]
[1771078764043,0.49042522,2075.5,2074.7,0.48586835]
[1771078764220,0.48932522,2075.4,2074.8,1.20493541]
[1771078765745,0.0011,2075.5,2074.9,0.48586835]
[1771078766716,0.0011,2075.5,2075.0,1.69068762]
[1771078767419,0.0011,2075.5,2074.8,1.20493541]
[1771078767420,0.48932522,2075.3,2074.8,1.20493541]
[1771078767918,0.49042522,2075.5,2074.8,1.20493541]
[1771078768144,0.49042522,2075.5,2074.8,1.69080376]
[1771078768344,0.49042522,2075.5,2074.9,0.48586835]
[1771078768948,0.49042522,2075.5,2075.0,1.20481927]
[1771078771019,0.0011,2075.5,2075.0,1.20481927]
[1771078771222,0.0011,2075.5,2075.1,0.46657411]
[1771078773161,0.0011,2075.5,2075.2,1.20470316]
[1771078776626,0.0011,2075.5,2074.9,6.63342749]
[1771078776627,0.48456333,2075.5,2075.0,1.20477835]
[1771078779362,1.68909846,2075.5,2075.0,1.20477835]
[1771078779668,0.48456333,2075.5,2075.0,1.20477835]
[1771078780555,0.48321418,2075.4,2075.0,1.20477835]
[1771078780733,0.48321418,2075.4,2074.9,3.01883726]
[1771078782355,0.0011,2075.5,2074.9,3.48950768]
[1771078783352,0.0011,2075.5,2075.0,0.47067042]
[1771078783555,0.48431418,2075.5,2074.9,1.20483726]
[1771078783752,0.48321418,2075.4,2074.9,1.20483726]
[1771078785552,0.48321418,2075.4,2074.8,4.81963959]
[1771078785867,0.48321418,2075.3,2074.7,1.20595584]
[1771078787857,0.48321418,2075.3,2074.7,0.001]
[1771078787858,0.48321418,2075.1,2074.7,0.001]
[1771078789567,6.89774245,2075.4,2074.7,0.001]
[1771078789866,0.48321418,2075.3,2074.7,0.001]
[1771078790274,1.68786401,2075.3,2074.7,1.20599349]
[1771078792887,0.48321418,2075.3,2074.7,0.47167042]
[1771078793647,0.0011,2075.5,2074.7,0.47167042]
[1771078794047,0.48321418,2075.4,2074.7,0.001]
[1771078794679,1.68782016,2075.4,2074.8,1.20493541]
[1771078794988,0.48321418,2075.3,2074.8,1.20493541]
[1771078797347,1.68790673,2075.3,2074.7,1.20595313]
[1771078800176,0.48431418,2075.5,2074.8,0.47067042]
[1771078800372,1.68885206,2075.5,2074.8,0.47067042]
[1771078800872,0.48321418,2075.4,2074.7,1.20595313]
[1771078801609,0.48263759,2075.2,2074.7,1.20595313]
[1771078803508,0.48263759,2075.4,2074.7,1.70304937]
[1771078803694,0.48263759,2075.4,2074.8,0.49709624]
[1771078804705,1.20567551,2075.5,2074.8,0.49709624]
[1771078805111,1.6883131,2075.5,2074.8,0.49709624]
[1771078805991,1.6883131,2075.5,2074.9,1.20487734]
[1771078807102,1.6883131,2075.5,2074.9,1.70197358]
[1771078807308,1.20567551,2075.5,2074.9,1.20487734]
[1771078807488,2.70967551,2075.5,2075.0,0.49709624]
[1771078807713,2.70967551,2075.5,2074.9,1.20487734]
[1771078807996,1.68722767,2075.4,2074.7,1.70308973]
[1771078808510,1.68722767,2075.4,2074.8,0.49709624]
[1771078809976,1.68722767,2075.4,2074.9,1.20487734]
[1771078811402,1.5051,2075.5,2075.0,0.49709624]
[1771078812197,1.5051,2075.5,2075.0,1.70185931]
[1771078812606,1.5051,2075.5,2075.1,0.49709624]
[1771078813507,0.0011,2075.5,2075.1,0.49709624]
[1771078814099,0.0011,2075.5,2075.3,0.49709624]
[1771078815113,0.0011,2075.8,2075.3,0.49709624]
[1771078817018,0.0011,2075.8,2075.4,1.20458706]
[1771078817303,0.0011,2075.8,2075.4,1.7016833]
[1771078819498,0.0011,2075.8,2075.5,0.49709624]
[1771078821178,0.0011,2076.0,2075.5,0.49709624]
[1771078821385,0.0011,2076.0,2075.6,1.20447099]
[1771078821807,0.0011,2076.0,2075.6,1.70156723]
[1771078822736,0.0011,2076.0,2075.6,1.20447099]
[1771078823516,0.48373759,2076.0,2075.5,4.81788398]
[1771078824104,0.0011,2076.0,2075.5,5.31498022]
[1771078825109,0.0011,2076.0,2075.6,0.49709624]
[1771078825502,0.0011,2076.0,2075.7,1.20441296]
[1771078825701,0.0011,2076.0,2075.7,1.7015092]
[1771078826023,0.0011,2076.0,2075.8,0.49709624]
[1771078827618,0.0011,2076.2,2075.9,1.20429693]
[1771078831226,0.0011,2076.2,2075.8,1.70141135]
[1771078831418,0.0011,2076.2,2075.8,1.20431511]
[1771078831419,0.4580216,2076.2,2075.8,1.20431511]
[1771078831817,1.66218018,2076.2,2075.7,1.204362]
[1771078832006,1.66218018,2076.2,2075.6,3.03942625]
[1771078832623,0.4580216,2076.2,2075.6,3.03942625]
[1771078836543,0.4580216,2076.2,2075.6,3.52891107]
[1771078840744,1.66215056,2076.2,2075.6,3.52891107]
[1771078841039,0.49738816,2076.1,2075.6,3.03942625]
[1771078845645,0.0011,2076.2,2075.6,3.52570807]
[1771078845847,0.49848816,2076.2,2075.6,3.52570807]
[1771078846951,0.0011,2076.2,2075.6,3.52570807]
[1771078847150,0.0011,2076.2,2075.7,0.48628182]
[1771078849255,1.70261428,2076.2,2075.7,1.20437231]
[1771078850730,0.49738816,2076.1,2075.7,1.20437231]
[1771078851457,0.0011,2076.2,2075.7,1.20437231]
[1771078851671,0.0011,2076.2,2075.8,0.48628182]
[1771078851820,0.0011,2076.2,2075.9,0.48628182]
[1771078852161,0.0011,2077.1,2076.4,0.48628182]
[1771078852354,0.0011,2077.1,2076.4,1.846]
[1771078852355,0.49738816,2077.0,2076.4,1.846]
[1771078852922,1.70105359,2077.0,2076.4,3.0499587]
[1771078853250,0.0011,2077.1,2076.6,0.48628182]
[1771078853555,0.0011,2077.1,2076.4,3.53624052]
[1771078853750,1.70209153,2077.1,2076.4,3.53624052]
[1771078853961,0.0011,2077.1,2076.5,0.48628182]
[1771078854338,0.49738816,2077.0,2076.4,3.0500006]
[1771078854658,0.0011,2077.1,2076.5,0.48628182]
[1771078854842,0.49738816,2077.0,2076.4,1.846]
[1771078855040,0.49738816,2076.9,2076.4,1.846]
[1771078855281,0.49738816,2076.9,2076.4,3.05000442]
[1771078855447,1.20370123,2077.0,2076.4,0.48628182]
[1771078855635,0.49738816,2077.0,2076.3,1.69031329]
[1771078856257,0.49738816,2077.0,2076.4,0.48628182]
[1771078856653,0.0011,2077.1,2076.4,0.48628182]
[1771078857060,0.0011,2077.1,2076.6,1.20389097]
[1771078857853,0.49848816,2077.1,2076.5,1.20391875]
[1771078858524,0.49848816,2077.1,2076.4,1.20396848]
[1771078858730,0.49848816,2077.1,2076.2,6.66439444]
[1771078859136,0.49848816,2077.1,2076.2,1.848]
[1771078859137,0.49738816,2076.9,2076.2,1.848]
[1771078859438,0.49738816,2076.9,2076.2,3.05212039]
[1771078859843,8.38526807,2077.0,2076.2,1.848]
[1771078859844,0.49738816,2076.7,2076.2,1.848]
[1771078860047,0.49738816,2076.7,2075.7,3.15469478]
[1771078860264,0.49738816,2076.7,2075.8,0.48628182]
[1771078860652,0.49738816,2076.6,2075.7,2.66841296]
[1771078860973,0.49738816,2076.6,2075.7,1.20441296]
[1771078861289,0.46783334,2076.6,2075.8,0.49282455]
[1771078861784,0.46783334,2076.6,2075.7,1.20441296]
[1771078862378,0.46783334,2076.6,2075.7,1.25258947]
[1771078862540,0.46783334,2076.6,2075.7,1.74541402]
[1771078863265,1.67178229,2076.5,2075.7,1.74541402]
[1771078863758,1.20394895,2076.5,2075.7,1.74541402]
[1771078863955,1.67178229,2076.5,2075.7,1.74541402]
[1771078865364,0.46783334,2076.4,2075.7,1.74541402]
[1771078865664,0.46783334,2076.4,2075.7,1.69723751]
[1771078865665,1.67184668,2076.4,2075.7,1.69723751]
[1771078868796,1.20397697,2076.5,2075.8,0.49282455]
[1771078869070,0.46783334,2076.5,2075.8,0.49282455]
[1771078869250,0.46783334,2076.5,2075.7,1.20441296]
[1771078869251,0.46783334,2076.5,2075.9,0.54099642]
[1771078869453,1.49400008,2076.8,2076.1,0.49282455]
[1771078869649,1.96183342,2076.8,2076.1,0.49282455]
[1771078870866,3.16560967,2076.8,2076.2,1.20412291]
[1771078871059,1.96183342,2076.8,2076.2,1.20412291]
[1771078871451,3.16561402,2076.8,2076.2,1.20412291]
[1771078871988,3.16561402,2076.8,2076.1,1.69696799]
[1771078872160,0.46783334,2076.5,2075.8,4.81734092]
[1771078872485,0.46783334,2076.5,2075.8,7.15616547]
[1771078873870,1.67179833,2076.5,2075.8,7.15616547]
[1771078875478,1.49400008,2076.4,2075.8,7.15616547]
[1771078876793,1.49400008,2076.4,2075.9,0.49282455]
[1771078877977,1.49400008,2076.4,2076.0,1.20423892]
[1771078878173,1.49400008,2076.4,2076.0,1.69706347]
[1771078879686,1.6715756,2076.9,2076.1,0.49282455]
[1771078879893,1.6715756,2076.9,2076.2,2.34082455]
[1771078881054,1.6715756,2076.9,2076.3,1.20406492]
[1771078883183,1.67155871,2076.9,2076.3,1.20406492]
[1771078883602,0.0011,2077.1,2076.6,0.49282455]
[1771078883755,0.46783334,2077.0,2076.6,1.852]
[1771078886488,0.46783334,2077.0,2076.6,3.05588989]
[1771078888001,0.46783334,2077.0,2076.6,1.852]
[1771078888393,0.46783334,2077.0,2076.6,3.05588675]
[1771078888894,1.67257079,2077.1,2076.6,3.05588675]
[1771078889584,1.20473745,2077.1,2076.6,3.05588675]
[1771078890167,0.0011,2077.1,2076.6,3.5487113]
[1771078890663,0.0011,2077.1,2076.6,1.852]
[1771078891068,0.46893334,2077.1,2076.6,1.852]
[1771078892184,0.46893334,2077.1,2076.6,3.05588502]
[1771078892366,0.0011,2077.1,2076.6,3.51989785]
[1771078893164,0.0011,2077.1,2076.7,0.46401283]
[1771078893564,0.0011,2077.4,2077.0,0.46401283]
[1771078894160,1.20453143,2077.4,2076.6,3.05588502]
[1771078894500,0.4735742,2077.3,2076.6,3.05588502]
[1771078896660,1.67708064,2077.3,2076.6,3.51989785]
[1771078896856,1.20350644,2077.3,2076.7,0.46401283]
[1771078897082,0.0011,2077.4,2076.8,6.14714653]
[1771078897398,0.0011,2077.4,2076.9,0.46401283]
[1771078897763,1.67811071,2077.4,2076.8,5.6831337]
[1771078898079,0.0011,2077.4,2076.9,0.46401283]
[1771078899763,0.0011,2077.4,2077.0,1.20365912]
[1771078901372,0.0011,2077.4,2077.0,1.68255599]
[1771078901770,0.0011,2077.6,2077.1,6.16203057]
[1771078902373,0.0011,2077.6,2077.1,0.47889687]
[1771078903700,0.0011,2077.6,2077.2,1.20354323]
[1771078905179,0.0011,2077.6,2077.2,1.6824401]
[1771078906472,0.0011,2077.6,2077.3,0.47889687]
[1771078906683,0.0011,2077.6,2077.2,1.20354323]
[1771078906983,0.0011,2077.6,2077.2,1.6824401]
[1771078907585,0.0011,2077.6,2077.3,0.47889687]
[1771078908193,0.0011,2077.8,2077.3,0.47889687]
[1771078908896,0.0011,2077.8,2077.4,1.68232423]
[1771078909272,1.65826685,2078.0,2077.4,1.68232423]
[1771078909979,0.45626673,2078.1,2077.5,0.47889687]
[1771078910395,0.45626673,2078.1,2077.1,0.47889687]
[1771078910591,0.45626673,2078.1,2077.2,3.06650083]
[1771078910788,0.45516673,2077.9,2077.2,3.06650083]
[1771078913002,1.65836241,2077.8,2077.2,3.06650083]
[1771078913175,0.45516673,2077.9,2077.2,3.06650083]
[1771078913579,0.45516673,2078.0,2077.3,6.16203057]
[1771078914123,0.45516673,2078.0,2077.2,3.06650083]
[1771078914403,0.45516673,2078.0,2076.9,0.47889687]
[1771078914610,0.45516673,2077.9,2077.0,1.20363223]
[1771078915199,0.45516673,2077.7,2077.0,1.20363223]
[1771078915380,0.45516673,2077.7,2077.0,1.6825291]
[1771078915578,1.20319568,2077.8,2077.2,5.6831337]
[1771078915818,1.20319568,2077.8,2077.2,6.16203057]
[1771078916182,1.65836241,2077.8,2077.2,5.6831337]
[1771078916382,1.65836241,2077.8,2077.0,7.3656628]
[1771078916685,0.45516673,2077.7,2077.0,7.3656628]
[1771078916887,1.65831192,2077.9,2077.1,0.47889687]
[1771078917402,1.65824661,2078.0,2077.3,0.47889687]
[1771078918122,0.45516673,2077.9,2077.2,1.20354323]
[1771078919516,0.45516673,2077.7,2077.2,1.20354323]
[1771078919687,0.45516673,2077.7,2077.1,1.863]
[1771078919887,0.45516673,2077.7,2077.1,3.06658919]
[1771078921922,0.49330909,2077.6,2076.8,1.20374172]
[1771078922213,0.49330909,2077.6,2076.8,3.06674172]